fUSD/lending_fUSD_20250930
["ID","MTS","AMOUNT","RATE_DAILY","PERIOD"]
[388551108,1759240266776,-500.0,0.00019178,2]
[388551109,1759240266788,-500.0,0.00019178,2]
[388551110,1759240266798,-247.413347,0.00019178,2]
[388551111,1759240266808,-500.0,0.00019178,2]
[388551112,1759240266818,-151.0,0.00019178,2]
[388551113,1759240266827,-3605.76,0.00019178,2]
[388551114,1759240266836,-500.0,0.00019178,2]
[388551115,1759240266846,-151.0,0.00019178,2]
[388551116,1759240266855,-247.413347,0.00019178,2]
[388551117,1759240266865,-151.0,0.00019178,2]
[388551118,1759240266874,-151.0,0.00019178,2]
[388551119,1759240266884,-500.0,0.00019178,2]
[388551120,1759240266893,-500.0,0.00019178,2]
[388551121,1759240266903,-500.0,0.00019178,2]
[388551122,1759240266913,-3520.57,0.00019178,2]
[388551123,1759240266923,-247.413347,0.00019178,2]
[388551124,1759240266933,-171.777196,0.00019178,2]
[388551125,1759240266942,-151.0,0.00019178,2]
[388551126,1759240266952,-500.0,0.00019178,2]
[388551127,1759240266961,-1733.9,0.00019178,2]
[388551128,1759240266971,-3604.25,0.00019178,2]
[388551129,1759240266980,-500.0,0.00019178,2]
[388551130,1759240266990,-500.0,0.00019178,2]
[388551131,1759240266999,-4033.8,0.00019178,2]
[388551132,1759240267009,-965.82,0.00019178,2]
[388551133,1759240267018,-500.0,0.00019178,2]
[388551134,1759240267027,-178.243114,0.00019178,2]
[388551135,1759240267038,-20780.06,0.00019178,2]
[388551136,1759240267048,-500.0,0.00019178,2]
[388551137,1759240267057,-738.87,0.00019178,2]
[388551138,1759240267066,-610.04,0.00019178,2]
[388551139,1759240267076,-2288.45,0.00019178,2]
[388551140,1759240267085,-511.94,0.00019178,2]
[388551141,1759240267094,-151.0,0.00019178,2]
[388551142,1759240267103,-899.45,0.00019178,2]
[388551143,1759240267113,-259.295793,0.00019178,2]
[388551144,1759240267122,-178.243114,0.00019178,2]
[388551145,1759240267131,-546.47,0.00019178,2]
[388551146,1759240267139,-6082.65,0.00019178,2]
[388551147,1759240267148,-293.7114525,0.00019178,2]
[388551148,1759240267158,-500.0,0.00019178,2]
[388551149,1759240267167,-259.295793,0.00019178,2]
[388551150,1759240267177,-178.243114,0.00019178,2]
[388551151,1759240267186,-2792.99,0.00019178,2]
[388551152,1759240267197,-259.295793,0.00019178,2]
[388551153,1759240267209,-178.243114,0.00019178,2]
[388551154,1759240267218,-324.108523,0.00019178,2]
[388551155,1759240267227,-500.0,0.00019178,2]
[388551156,1759240267237,-259.295793,0.00019178,2]
[388551157,1759240267246,-324.108523,0.00019178,2]
[388551158,1759240267255,-500.0,0.00019178,2]
[388551159,1759240267265,-2345.29,0.00019178,2]
[388551160,1759240267274,-500.0,0.00019178,2]
[388551161,1759240267286,-836.63,0.00019178,2]
[388551162,1759240267295,-500.0,0.00019178,2]
[388551163,1759240267304,-324.108523,0.00019178,2]
[388551164,1759240267315,-3532.55,0.00019178,2]
[388551165,1759240267323,-500.0,0.00019178,2]
[388551166,1759240267334,-2744.05,0.00019178,2]
[388551167,1759240267344,-151.0,0.00019178,2]
[388551168,1759240267353,-500.0,0.00019178,2]
[388551169,1759240267362,-2886.79,0.00019178,2]
[388551170,1759240267372,-708.23,0.00019178,2]
[388551171,1759240267382,-324.108523,0.00019178,2]
[388551172,1759240267391,-500.0,0.00019178,2]
[388551173,1759240267400,-10430.65,0.00019178,2]
[388551174,1759240267409,-151.0,0.00019178,2]
[388551175,1759240267419,-165.668043,0.00019178,2]
[388551176,1759240267428,-500.0,0.00019178,2]
[388551177,1759240267437,-854.6,0.00019178,2]
[388551178,1759240267447,-500.0,0.00019178,2]
[388551179,1759240267456,-1762.85,0.00019178,2]
[388551180,1759240267465,-500.0,0.00019178,2]
[388551181,1759240267474,-165.668043,0.00019178,2]
[388551182,1759240267483,-500.0,0.00019178,2]
[388551183,1759240267492,-500.0,0.00019178,2]
[388551184,1759240267502,-500.0,0.00019178,2]
[388551185,1759240267512,-4052.2,0.00019178,2]
[388551186,1759240267521,-165.668043,0.00019178,2]
[388551187,1759240267531,-697.8,0.00019178,2]
[388551188,1759240267541,-151.0,0.00019178,2]
[388551189,1759240267551,-4990.77,0.00019178,2]
[388551190,1759240267561,-1859.04,0.00019178,2]
[388551191,1759240267571,-165.668043,0.00019178,2]
[388551192,1759240267582,-4685.47,0.00019178,2]
[388551193,1759240267591,-3466.13,0.00019178,2]
[388551194,1759240267600,-151.0,0.00019178,2]
[388551195,1759240267609,-500.0,0.00019178,2]
[388551196,1759240267619,-500.0,0.00019178,2]
[388551197,1759240267628,-2922.79,0.00019178,2]
[388551198,1759240267638,-500.0,0.00019178,2]
[388551199,1759240267647,-181.805125,0.00019178,2]
[388551200,1759240267657,-509.44,0.00019178,2]
[388551201,1759240267666,-3442.87,0.00019178,2]
[388551202,1759240267676,-500.0,0.00019178,2]
[388551203,1759240267686,-500.0,0.00019178,2]
[388551204,1759240267697,-500.0,0.00019178,2]
[388551205,1759240267707,-4827.63,0.00019178,2]
[388551206,1759240267716,-526.47,0.00019178,2]
[388551207,1759240267726,-500.0,0.00019178,2]
[388551208,1759240267735,-929.49,0.00019178,2]
[388551209,1759240267744,-576.16,0.00019178,2]
[388551210,1759240267754,-1406.64,0.00019178,2]
[388551211,1759240267941,-500.0,0.00019178,2]
[388551212,1759240267951,-535.69,0.00019178,2]
[388551213,1759240267960,-1954.99,0.00019178,2]
[388551214,1759240267970,-540.37,0.00019178,2]
[388551215,1759240267979,-500.0,0.00019178,2]
[388551216,1759240267988,-2895.27,0.00019178,2]
[388551217,1759240267997,-1043.47,0.00019178,2]
[388551218,1759240268007,-3925.81,0.00019178,2]
[388551219,1759240268016,-1045.94,0.00019178,2]
[388551220,1759240268026,-645.22,0.00019178,2]
[388551221,1759240268037,-3484.65,0.00019178,2]
[388551222,1759240268047,-500.0,0.00019178,2]
[388551223,1759240268056,-2999.63,0.00019178,2]
[388551224,1759240268066,-151.0,0.00019178,2]
[388551225,1759240268076,-2283.42,0.00019178,2]
[388551226,1759240268085,-2811.19,0.00019178,2]
[388551227,1759240268095,-151.0,0.00019178,2]
[388551228,1759240268105,-2816.6,0.00019178,2]
[388551229,1759240268115,-151.0,0.00019178,2]
[388551230,1759240268124,-151.0,0.00019178,2]
[388551231,1759240268134,-1338.26,0.00019178,2]
[388551232,1759240268143,-500.0,0.00019178,2]
[388551233,1759240268153,-4837.09,0.00019178,2]
[388551234,1759240268163,-3113.64,0.00019178,2]
[388551235,1759240268173,-151.0,0.00019178,2]
[388551236,1759240268182,-19762.18,0.00019178,2]
[388551237,1759240268192,-500.0,0.00019178,2]
[388551238,1759240268206,-1174.76,0.00019178,2]
[388551239,1759240268216,-558.7012919,0.00019178,2]
[388551240,1759240268226,-947.63,0.00019178,2]
[388551241,1759240268236,-151.0,0.00019178,2]
[388551242,1759240268247,-3304.23,0.00019178,2]
[388551243,1759240268257,-886.09,0.00019178,2]
[388551244,1759240268266,-151.0,0.00019178,2]
[388551245,1759240268281,-151.0,0.00019178,2]
[388551246,1759240268292,-499.44621469,0.00019178,2]
[388551247,1759240268302,-500.0,0.00019178,2]
[388551248,1759240268312,-2936.04,0.00019178,2]
[388551249,1759240268321,-500.0,0.00019178,2]
[388551250,1759240268331,-1427.41,0.00019178,2]
[388551251,1759240268341,-500.0,0.00019178,2]
[388551252,1759240268351,-1072.81,0.00019178,2]
[388551253,1759240268360,-5730.05,0.00019178,2]
[388551254,1759240268370,-151.0,0.00019178,2]
[388551255,1759240268380,-9933.01,0.00019178,2]
[388551256,1759240268390,-8309.91,0.00019178,2]
[388551257,1759240268400,-1695.32,0.00019178,2]
[388551258,1759240268410,-500.0,0.00019178,2]
[388551259,1759240268419,-1068.35,0.00019178,2]
[388551260,1759240268430,-781.535215,0.00019178,2]
[388551261,1759240268439,-1099.77,0.00019178,2]
[388551262,1759240268449,-1860.95,0.00019178,2]
[388551263,1759240268464,-500.0,0.00019178,2]
[388551264,1759240268475,-3055.243075,0.00019178,2]
[388551265,1759240268484,-3886.98,0.00019178,2]
[388551266,1759240268494,-719.55,0.00019178,2]
[388551267,1759240268505,-2834.78,0.00019178,2]
[388551268,1759240268515,-781.535215,0.00019178,2]
[388551269,1759240268524,-500.0,0.00019178,2]
[388551270,1759240268536,-5464.08,0.00019178,2]
[388551271,1759240268546,-4218.11,0.00019178,2]
[388551272,1759240268556,-151.0,0.00019178,2]
[388551273,1759240268566,-259.716365,0.00019178,2]
[388551274,1759240268576,-3055.243075,0.00019178,2]
[388551275,1759240268585,-1340.22,0.00019178,2]
[388551276,1759240268595,-7280.81,0.00019178,2]
[388551277,1759240268605,-781.535215,0.00019178,2]
[388551278,1759240268615,-500.0,0.00019178,2]
[388551279,1759240268625,-3179.64,0.00019178,2]
[388551280,1759240268635,-259.716365,0.00019178,2]
[388551281,1759240268645,-151.0,0.00019178,2]
[388551282,1759240268655,-4400.59,0.00019178,2]
[388551283,1759240268665,-3055.243075,0.00019178,2]
[388551284,1759240268679,-500.0,0.00019178,2]
[388551285,1759240268690,-781.535215,0.00019178,2]
[388551286,1759240268700,-259.716365,0.00019178,2]
[388551287,1759240268709,-155.782733,0.00019178,2]
[388551288,1759240268719,-3055.243075,0.00019178,2]
[388551289,1759240268730,-500.0,0.00019178,2]
[388551290,1759240268741,-3118.0,0.00019178,2]
[388551291,1759240268751,-259.716365,0.00019178,2]
[388551292,1759240268762,-1382.23,0.00019178,2]
[388551293,1759240268772,-1085.95,0.00019178,2]
[388551294,1759240268783,-5606.8,0.00019178,2]
[388551295,1759240268794,-500.0,0.00019178,2]
[388551296,1759240268804,-2191.69,0.00019178,2]
[388551297,1759240268814,-450.501156,0.00019178,2]
[388551298,1759240268825,-795.62697,0.00019178,2]
[388551299,1759240268835,-500.0,0.00019178,2]
[388551300,1759240268845,-500.0,0.00019178,2]
[388551301,1759240268856,-1121.59,0.00019178,2]
[388551302,1759240268866,-500.0,0.00019178,2]
[388551303,1759240268876,-450.501156,0.00019178,2]
[388551304,1759240268886,-500.0,0.00019178,2]
[388551305,1759240268896,-151.0,0.00019178,2]
[388551306,1759240268906,-795.62697,0.00019178,2]
[388551307,1759240268916,-500.0,0.00019178,2]
[388551308,1759240268927,-1821.92,0.00019178,2]
[388551309,1759240268937,-311.567639,0.00019178,2]
[388551310,1759240268947,-450.501156,0.00019178,2]
[388551311,1759240268957,-500.0,0.00019178,2]
[388551312,1759240268967,-4022.76,0.00019178,2]
[388551313,1759240268978,-500.0,0.00019178,2]
[388551314,1759240268987,-151.0,0.00019178,2]
[388551315,1759240268998,-795.62697,0.00019178,2]
[388551316,1759240269009,-500.0,0.00019178,2]
[388551317,1759240269018,-609.174518,0.00019178,2]
[388551318,1759240269028,-500.0,0.00019178,2]
[388551319,1759240269038,-311.567639,0.00019178,2]
[388551320,1759240269048,-450.501156,0.00019178,2]
[388551321,1759240269058,-795.62697,0.00019178,2]
[388551322,1759240269071,-500.0,0.00019178,2]
[388551323,1759240269081,-500.0,0.00019178,2]
[388551324,1759240269091,-609.174518,0.00019178,2]
[388551325,1759240269101,-3228.92,0.00019178,2]
[388551326,1759240269111,-1155.95,0.00019178,2]
[388551327,1759240269121,-500.0,0.00019178,2]
[388551328,1759240269132,-500.0,0.00019178,2]
[388551329,1759240269142,-500.0,0.00019178,2]
[388551330,1759240269152,-311.567639,0.00019178,2]
[388551331,1759240269162,-609.174518,0.00019178,2]
[388551332,1759240269172,-500.0,0.00019178,2]
[388551333,1759240269182,-311.567639,0.00019178,2]
[388551334,1759240269192,-609.174518,0.00019178,2]
[388551335,1759240269206,-500.0,0.00019178,2]
[388551336,1759240269216,-715.09,0.00019178,2]
[388551337,1759240269226,-2361.75,0.00019178,2]
[388551338,1759240269236,-1154.61,0.00019178,2]
[388551339,1759240269246,-151.0,0.00019178,2]
[388551340,1759240269256,-500.0,0.00019178,2]
[388551341,1759240269266,-151.79347,0.00019178,2]
[388551342,1759240269276,-3696.96,0.00019178,2]
[388551343,1759240269289,-22451.0,0.00019178,2]
[388551344,1759240269299,-500.0,0.00019178,2]
[388551345,1759240269309,-500.0,0.00019178,2]
[388551346,1759240269320,-2532.13,0.00019178,2]
[388551347,1759240269331,-151.0,0.00019178,2]
[388551348,1759240269341,-1235.06,0.00019178,2]
[388551349,1759240269351,-151.79347,0.00019178,2]
[388551350,1759240269361,-550.71,0.00019178,2]
[388551351,1759240269371,-500.0,0.00019178,2]
[388551352,1759240269381,-151.0,0.00019178,2]
[388551353,1759240269391,-500.0,0.00019178,2]
[388551354,1759240269402,-1249.63,0.00019178,2]
[388551355,1759240269411,-151.79347,0.00019178,2]
[388551356,1759240269421,-4834.6,0.00019178,2]
[388551357,1759240269431,-151.0,0.00019178,2]
[388551358,1759240269441,-2260.51,0.00019178,2]
[388551359,1759240269451,-500.0,0.00019178,2]
[388551360,1759240269461,-151.79347,0.00019178,2]
[388551361,1759240269471,-151.0,0.00019178,2]
[388551362,1759240269480,-500.0,0.00019178,2]
[388551363,1759240269490,-500.0,0.00019178,2]
[388551364,1759240269501,-500.0,0.00019178,2]
[388551365,1759240269511,-500.0,0.00019178,2]
[388551366,1759240269522,-500.0,0.00019178,2]
[388551367,1759240269534,-6286.35,0.00019178,2]
[388551368,1759240269544,-6442.41,0.00019178,2]
[388551369,1759240269554,-2171.4,0.00019178,2]
[388551370,1759240269563,-2781.0,0.00019178,2]
[388551371,1759240269575,-8170.98,0.00019178,2]
[388551372,1759240269585,-500.0,0.00019178,2]
[388551373,1759240269596,-500.0,0.00019178,2]
[388551374,1759240269607,-771.77,0.00019178,2]
[388551375,1759240269618,-663.14,0.00019178,2]
[388551376,1759240269629,-500.0,0.00019178,2]
[388551377,1759240269639,-2939.81,0.00019178,2]
[388551378,1759240269650,-500.0,0.00019178,2]
[388551379,1759240269659,-3571.8,0.00019178,2]
[388551380,1759240269670,-3082.09,0.00019178,2]
[388551381,1759240269679,-500.0,0.00019178,2]
[388551382,1759240269690,-4639.88,0.00019178,2]
[388551383,1759240269700,-4726.46,0.00019178,2]
[388551384,1759240269710,-1404.94,0.00019178,2]
[388551385,1759240269720,-500.0,0.00019178,2]
[388551386,1759240269729,-934.2,0.00019178,2]
[388551387,1759240269739,-500.0,0.00019178,2]
[388551388,1759240269749,-4502.44,0.00019178,2]
[388551389,1759240269759,-500.0,0.00019178,2]
[388551390,1759240269768,-3406.59,0.00019178,2]
[388551391,1759240269778,-563.84128107,0.00019178,2]
[388551392,1759240269790,-500.0,0.00019178,2]
[388551393,1759240269799,-500.0,0.00019178,2]
[388551394,1759240269810,-500.0,0.00019178,2]
[388551395,1759240269820,-500.0,0.00019178,2]
[388551396,1759240269829,-500.0,0.00019178,2]
[388551397,1759240269839,-485.4165663,0.00019178,2]
[388551398,1759240269848,-540.5,0.00019178,2]
[388551399,1759240269857,-500.0,0.00019178,2]
[388551400,1759240269867,-4690.1,0.00019178,2]
[388551401,1759240269876,-3481.91,0.00019178,2]
[388551402,1759240269886,-500.0,0.00019178,2]
[388551403,1759240269895,-1038.94,0.00019178,2]
[388551404,1759240269904,-6488.25,0.00019178,2]
[388551405,1759240269913,-151.0,0.00019178,2]
[388551406,1759240269923,-3323.26,0.00019178,2]
[388551407,1759240269934,-500.0,0.00019178,2]
[388551408,1759240269943,-1369.59,0.00019178,2]
[388551409,1759240269952,-500.0,0.00019178,2]
[388551410,1759240269962,-5530.75,0.00019178,2]
[388551411,1759240269971,-1181.95,0.00019178,2]
[388551412,1759240269981,-234.706196,0.00019178,2]
[388551413,1759240269991,-1390.21,0.00019178,2]
[388551414,1759240270000,-1361.61,0.00019178,2]
[388551415,1759240270009,-151.0,0.00019178,2]
[388551416,1759240270019,-151.0,0.00019178,2]
[388551417,1759240270028,-500.0,0.00019178,2]
[388551418,1759240270040,-234.706196,0.00019178,2]
[388551419,1759240270050,-500.0,0.00019178,2]
[388551420,1759240270059,-500.0,0.00019178,2]
[388551421,1759240270069,-5411.44,0.00019178,2]
[388551422,1759240270079,-151.0,0.00019178,2]
[388551423,1759240270088,-234.706196,0.00019178,2]
[388551424,1759240270097,-1581.45,0.00019178,2]
[388551425,1759240270107,-500.0,0.00019178,2]
[388551426,1759240270117,-500.0,0.00019178,2]
[388551427,1759240270127,-151.0,0.00019178,2]
[388551428,1759240270136,-500.0,0.00019178,2]
[388551429,1759240270572,-234.706196,0.00019178,2]
[388551430,1759240270587,-3964.99,0.00019178,2]
[388551431,1759240270598,-206.47764544,0.00019178,2]
[388551432,1759240270608,-3748.58,0.00019178,2]
[388551433,1759240270618,-2676.52,0.00019178,2]
[388551434,1759240270628,-654.98,0.00019178,2]
[388551435,1759240270638,-239.38325454,0.00019178,2]
[388551436,1759240270648,-730.34,0.00019178,2]
[388551437,1759240270659,-272.66166338,0.00019178,2]
[388551438,1759240270669,-3552.31,0.00019178,2]
[388551439,1759240270678,-2765.4,0.00019178,2]
[388551440,1759240270688,-939.77,0.00019178,2]
[388551441,1759240270698,-1000.94,0.00019178,2]
[388551442,1759240270708,-500.0,0.00019178,2]
[388551443,1759240270717,-500.0,0.00019178,2]
[388551444,1759240270727,-1934.59,0.00019178,2]
[388551445,1759240270738,-1474.11,0.00019178,2]
[388551446,1759240270748,-552.85,0.00019178,2]
[388551447,1759240270758,-500.0,0.00019178,2]
[388551448,1759240270768,-151.0,0.00019178,2]
[388551449,1759240270778,-500.0,0.00019178,2]
[388551450,1759240270790,-511.55,0.00019178,2]
[388551451,1759240270800,-511.55,0.00019178,2]
[388551452,1759240270810,-511.55,0.00019178,2]
[388551453,1759240270820,-151.0,0.00019178,2]
[388551454,1759240270833,-2157.39,0.00019178,2]
[388551455,1759240270843,-18492.31,0.00019178,2]
[388551456,1759240270852,-5681.34,0.00019178,2]
[388551457,1759240270863,-151.0,0.00019178,2]
[388551458,1759240270873,-500.0,0.00019178,2]
[388551459,1759240270883,-500.0,0.00019178,2]
[388551460,1759240270894,-165.108086,0.00019178,2]
[388551461,1759240270904,-500.0,0.00019178,2]
[388551462,1759240270914,-151.0,0.00019178,2]
[388551463,1759240270924,-509.23,0.00019178,2]
[388551464,1759240270934,-151.0,0.00019178,2]
[388551465,1759240270943,-1186.56,0.00019178,2]
[388551466,1759240270952,-500.0,0.00019178,2]
[388551467,1759240270962,-500.0,0.00019178,2]
[388551468,1759240270973,-541.6,0.00019178,2]
[388551469,1759240270984,-151.0,0.00019178,2]
[388551470,1759240270993,-500.0,0.00019178,2]
[388551471,1759240271004,-500.0,0.00019178,2]
[388551472,1759240271014,-1119.61,0.00019178,2]
[388551473,1759240271023,-1172.72,0.00019178,2]
[388551474,1759240271035,-151.0,0.00019178,2]
[388551475,1759240271044,-5357.55,0.00019178,2]
[388551476,1759240271053,-583.56,0.00019178,2]
[388551477,1759240271063,-3680.77,0.00019178,2]
[388551478,1759240271072,-151.0,0.00019178,2]
[388551479,1759240271082,-500.0,0.00019178,2]
[388551480,1759240271091,-7317.79,0.00019178,2]
[388551481,1759240271100,-151.0,0.00019178,2]
[388551482,1759240271110,-500.0,0.00019178,2]
[388551483,1759240271119,-500.0,0.00019178,2]
[388551484,1759240271129,-2723.4,0.00019178,2]
[388551485,1759240271139,-500.0,0.00019178,2]
[388551486,1759240271149,-1429.01,0.00019178,2]
[388551487,1759240271159,-450.57643129,0.00019178,2]
[388551488,1759240271169,-585.029215,0.00019178,2]
[388551489,1759240271178,-153.011882,0.00019178,2]
[388551490,1759240271187,-688.57,0.00019178,2]
[388551491,1759240271198,-500.0,0.00019178,2]
[388551492,1759240271209,-8458.571005,0.00019178,2]
[388551493,1759240271219,-585.029215,0.00019178,2]
[388551494,1759240271228,-500.0,0.00019178,2]
[388551495,1759240271238,-500.0,0.00019178,2]
[388551496,1759240271248,-1583.56751,0.00019178,2]
[388551497,1759240271257,-295.749901,0.00019178,2]
[388551498,1759240271267,-153.011882,0.00019178,2]
[388551499,1759240271275,-8458.571005,0.00019178,2]
[388551500,1759240271288,-585.029215,0.00019178,2]
[388551501,1759240271297,-863.38,0.00019178,2]
[388551502,1759240271307,-1249.51,0.00019178,2]
[388551503,1759240271316,-1583.56751,0.00019178,2]
[388551504,1759240271326,-447.14386621,0.00019178,2]
[388551505,1759240271335,-295.749901,0.00019178,2]
[388551506,1759240271345,-739.07,0.00019178,2]
[388551507,1759240271355,-2415.34,0.00019178,2]
[388551508,1759240271364,-505.11,0.00019178,2]
[388551509,1759240271374,-8458.571005,0.00019178,2]
[388551510,1759240271383,-153.011882,0.00019178,2]
[388551511,1759240271392,-585.029215,0.00019178,2]
[388551512,1759240271402,-3504.09,0.00019178,2]
[388551513,1759240271411,-5494.11,0.00019178,2]
[388551514,1759240271422,-1583.56751,0.00019178,2]
[388551515,1759240271432,-1836.14,0.00019178,2]
[388551516,1759240271442,-500.0,0.00019178,2]
[388551517,1759240271451,-295.749901,0.00019178,2]
[388551518,1759240271461,-500.0,0.00019178,2]
[388551519,1759240271470,-8458.571005,0.00019178,2]
[388551520,1759240271479,-153.011882,0.00019178,2]
[388551521,1759240271489,-995.39,0.00019178,2]
[388551522,1759240271499,-6705.33,0.00019178,2]
[388551523,1759240271508,-500.0,0.00019178,2]
[388551524,1759240271518,-6781.75,0.00019178,2]
[388551525,1759240271527,-7000.6,0.00019178,2]
[388551526,1759240271541,-1583.56751,0.00019178,2]
[388551527,1759240271550,-295.749901,0.00019178,2]
[388551528,1759240271559,-4925.05,0.00019178,2]
[388551529,1759240271569,-1562.72,0.00019178,2]
[388551530,1759240271578,-500.0,0.00019178,2]
[388551531,1759240271587,-1497.08,0.00019178,2]
[388551532,1759240271597,-8103.56,0.00019178,2]
[388551533,1759240271606,-500.0,0.00019178,2]
[388551534,1759240271615,-681.713007,0.00019178,2]
[388551535,1759240271625,-3281.17,0.00019178,2]
[388551536,1759240271634,-681.713007,0.00019178,2]
[388551537,1759240271644,-500.0,0.00019178,2]
[388551538,1759240271653,-500.0,0.00019178,2]
[388551539,1759240271662,-4136.69,0.00019178,2]
[388551540,1759240271672,-681.713007,0.00019178,2]
[388551541,1759240271681,-500.0,0.00019178,2]
[388551542,1759240271690,-1715.07,0.00019178,2]
[388551543,1759240271700,-500.0,0.00019178,2]
[388551544,1759240271709,-500.0,0.00019178,2]
[388551545,1759240271719,-5894.74,0.00019178,2]
[388551546,1759240271728,-5362.41,0.00019178,2]
[388551547,1759240271738,-681.713007,0.00019178,2]
[388551548,1759240271748,-1341.41,0.00019178,2]
[388551549,1759240271757,-2755.02,0.00019178,2]
[388551550,1759240271767,-247.262938,0.00019178,2]
[388551551,1759240271777,-500.0,0.00019178,2]
[388551552,1759240271789,-500.0,0.00019178,2]
[388551553,1759240271798,-10208.2,0.00019178,2]
[388551554,1759240271809,-247.262938,0.00019178,2]
[388551555,1759240271820,-500.0,0.00019178,2]
[388551556,1759240271830,-647.37,0.00019178,2]
[388551557,1759240271839,-858.6,0.00019178,2]
[388551558,1759240271849,-281.603193,0.00019178,2]
[388551559,1759240271859,-3373.16,0.00019178,2]
[388551560,1759240271868,-1570.13,0.00019178,2]
[388551561,1759240271877,-247.262938,0.00019178,2]
[388551562,1759240271887,-500.0,0.00019178,2]
[388551563,1759240271897,-1122.49,0.00019178,2]
[388551564,1759240271908,-1556.2,0.00019178,2]
[388551565,1759240271917,-281.603193,0.00019178,2]
[388551566,1759240271927,-247.262938,0.00019178,2]
[388551567,1759240271936,-500.0,0.00019178,2]
[388551568,1759240271946,-3871.47,0.00019178,2]
[388551569,1759240271955,-1684.89,0.00019178,2]
[388551570,1759240271965,-281.603193,0.00019178,2]
[388551571,1759240271975,-500.0,0.00019178,2]
[388551572,1759240271984,-281.603193,0.00019178,2]
[388551573,1759240271993,-931.46,0.00019178,2]
[388551574,1759240272003,-500.0,0.00019178,2]
[388551575,1759240272014,-500.0,0.00019178,2]
[388551576,1759240272023,-4011.93,0.00019178,2]
[388551577,1759240272034,-500.0,0.00019178,2]
[388551578,1759240272045,-500.0,0.00019178,2]
[388551579,1759240272054,-500.0,0.00019178,2]
[388551580,1759240272064,-12816.21,0.00019178,2]
[388551581,1759240272077,-500.0,0.00019178,2]
[388551582,1759240272088,-151.0,0.00019178,2]
[388551583,1759240272098,-483.83000001,0.00019178,2]
[388551584,1759240272107,-500.0,0.00019178,2]
[388551585,1759240272117,-500.0,0.00019178,2]
[388551586,1759240272127,-500.0,0.00019178,2]
[388551587,1759240272136,-151.0,0.00019178,2]
[388551588,1759240272146,-297.22671453,0.00019178,2]
[388551589,1759240272155,-500.0,0.00019178,2]
[388551590,1759240272165,-694.15,0.00019178,2]
[388551591,1759240272174,-151.0,0.00019178,2]
[388551592,1759240272184,-1162.06,0.00019178,2]
[388551593,1759240272193,-6873.68,0.00019178,2]
[388551594,1759240272208,-500.0,0.00019178,2]
[388551595,1759240272218,-500.0,0.00019178,2]
[388551596,1759240272229,-500.0,0.00019178,2]
[388551597,1759240272239,-2523.64,0.00019178,2]
[388551598,1759240272250,-262.160137,0.00019178,2]
[388551599,1759240272260,-500.0,0.00019178,2]
[388551600,1759240272270,-3703.76,0.00019178,2]
[388551601,1759240272284,-500.0,0.00019178,2]
[388551602,1759240272293,-3826.94,0.00019178,2]
[388551603,1759240272302,-500.0,0.00019178,2]
[388551604,1759240272312,-895.74,0.00019178,2]
[388551605,1759240272322,-500.0,0.00019178,2]
[388551606,1759240272331,-2564.83,0.00019178,2]
[388551607,1759240272340,-500.0,0.00019178,2]